bitfinex/quotes_ETHUSD_20260103
["timestamp","ask_amount","ask_price","bid_price","bid_amount"]
[1767453578011,0.001,3101.0,3100.6,2.34570934]
[1767453578217,0.001,3101.0,3100.6,2.34370934]
[1767453580896,0.001,3101.0,3100.7,0.01420986]
[1767453581215,0.001,3101.0,3100.7,2.3599192]
[1767453582000,0.001,3101.0,3100.7,2.9042262]
[1767453583004,0.001,3101.0,3100.7,6.12928805]
[1767453584517,0.001,3101.0,3100.7,2.9042262]
[1767453585014,1.96670733,3101.0,3100.5,0.002]
[1767453588187,0.001,3101.0,3100.5,2.34770934]
[1767453600569,0.001,3101.0,3100.5,0.002]
[1767453600709,1.96670733,3101.0,3100.5,0.002]
[1767453601540,1.96570733,3100.9,3100.4,0.00080232]
[1767453601705,0.5202373,3101.0,3100.4,2.36475435]
[1767453601917,0.001,3101.0,3100.4,2.36475435]
[1767453602118,0.001,3101.0,3100.5,2.36595203]
[1767453604050,0.001,3101.0,3100.5,5.59120247]
[1767453604239,0.001,3101.0,3100.6,2.36395203]
[1767453606553,0.001,3101.0,3100.6,2.92315251]
[1767453607917,0.001,3101.0,3100.7,2.36395203]
[1767453608114,0.001,3101.3,3100.9,2.36395203]
[1767453613460,0.001,3101.3,3101.0,2.36395203]
[1767453613756,5.18969141,3101.8,3101.1,0.2363952]
[1767453613936,5.14149461,3101.8,3101.3,0.00080328]
[1767453614147,0.00080328,3101.7,3101.1,2.36395203]
[1767453617372,0.00080328,3101.7,3101.2,2.36395203]
[1767453618168,0.00080328,3101.7,3101.3,2.36395203]
[1767453618936,0.001,3101.9,3101.5,2.36395203]
[1767453619141,0.001,3101.9,3101.6,0.2363952]
[1767453619541,0.001,3101.9,3101.6,2.60034723]
[1767453619974,0.001,3101.7,3101.6,2.60034723]
[1767453620139,0.001,3101.9,3101.6,2.60034723]
[1767453622857,0.001,3102.1,3101.8,2.36395203]
[1767453623061,0.001,3102.1,3101.9,2.60034723]
[1767453624463,0.001,3102.1,3101.9,2.59834724]
[1767453625476,0.001,3102.4,3102.0,2.36395203]
[1767453625975,0.001,3102.4,3101.9,0.23439521]
[1767453626557,1.91851053,3102.3,3101.9,0.23439521]
[1767453626757,1.91851053,3102.3,3101.8,0.00080312]
[1767453629581,0.001,3102.1,3101.8,0.00080312]
[1767453631079,0.001,3102.1,3101.8,2.47706551]
[1767453631580,0.001,3102.3,3101.8,2.47706551]
[1767453637911,0.001,3102.3,3101.8,5.70099733]
[1767453638069,0.001,3102.3,3101.9,0.57009973]
[1767453638607,0.001,3102.3,3101.9,3.04636212]
[1767453639099,0.001,3102.6,3101.9,3.04636212]
[1767453639298,0.001,3102.6,3101.9,6.27015645]
[1767453639506,0.001,3102.6,3102.0,2.47626239]
[1767453639704,0.001,3102.6,3102.1,3.10327803]
[1767453640995,0.001,3102.6,3101.9,3.04636212]
[1767453641297,1.90450435,3102.6,3101.8,0.00080312]
[1767453641490,1.86321556,3102.5,3101.8,0.84680312]
[1767453641914,1.86321556,3102.5,3101.8,0.00080312]
[1767453644282,1.81321556,3102.5,3101.8,0.00080312]
[1767453646211,1.81321556,3102.5,3101.8,0.00280312]
[1767453646519,1.81421556,3102.5,3101.8,0.00280312]
[1767453648620,0.001,3102.5,3101.8,2.47906551]
[1767453648927,0.001,3102.5,3101.8,3.48003518]
[1767453649097,0.001,3102.5,3101.9,2.49043785]
[1767453649297,0.001,3102.5,3101.9,2.47626239]
[1767453649699,1.81421556,3102.5,3101.8,1.00377279]
[1767453650000,1.81421556,3102.5,3101.8,3.48003518]
[1767453650202,1.81421556,3102.5,3101.9,0.67040114]
[1767453650522,1.81421556,3102.5,3101.9,3.14666353]
[1767453653131,0.001,3102.5,3101.9,3.14666353]
[1767453654403,0.001,3102.5,3102.0,2.47626239]
[1767453657059,0.001,3102.5,3102.1,2.47626239]
[1767453657204,0.001,3102.5,3102.2,0.56999711]
[1767453657952,0.00080335,3102.7,3102.2,3.0462595]
[1767453659542,0.00080335,3102.7,3102.3,2.47626239]
[1767453661753,0.00080335,3102.7,3102.4,2.38796647]
[1767453661922,0.00080335,3102.7,3102.5,2.94910268]
[1767453663013,0.00080335,3102.7,3102.5,2.38796647]
[1767453664615,0.00080335,3102.7,3102.3,5.61135741]
[1767453664811,0.00080335,3102.7,3102.4,2.38796647]
[1767453665452,0.00180335,3102.7,3102.4,2.38796647]
[1767453668047,0.001,3103.0,3102.6,2.38796647]
[1767453668266,0.001,3103.0,3102.6,2.94909417]
[1767453668575,0.001,3103.0,3102.6,2.94709418]
[1767453671331,0.001,3103.0,3102.6,2.38596648]
[1767453674089,0.001,3103.4,3102.7,2.38796647]
[1767453674283,0.001,3103.4,3102.9,2.38796647]
[1767453674571,0.001,3103.4,3102.8,0.0008024]
[1767453674572,1.85649395,3103.4,3102.8,0.0008024]
[1767453675272,1.81621555,3103.4,3102.8,0.0008024]
[1767453675571,1.85549525,3103.3,3102.8,0.0008024]
[1767453676284,1.81521555,3103.3,3102.8,0.0008024]
[1767453683699,1.81621555,3103.4,3102.8,0.32417929]
[1767453683996,1.81621555,3103.4,3102.8,2.71214576]
[1767453683997,0.001,3103.4,3102.8,2.71214576]
[1767453684507,0.001,3103.4,3102.8,0.32417929]
[1767453684680,1.81621555,3103.4,3102.8,0.32417929]
[1767453685072,1.81621555,3103.4,3102.8,0.3221793]
[1767453685297,0.0008024,3103.2,3102.8,0.32017931]
[1767453685471,0.0008024,3103.2,3102.8,0.32117931]
[1767453685797,0.0008024,3103.2,3102.8,2.70914578]
[1767453685997,0.0008024,3103.2,3102.9,0.59321443]
[1767453686195,0.0008024,3103.2,3102.9,0.59121444]
[1767453686975,0.0008024,3103.2,3103.0,0.01415117]
[1767453687375,1.81701843,3103.6,3103.0,2.40211764]
[1767453687689,0.00180288,3103.6,3103.0,2.38796647]
[1767453687871,0.00180288,3103.6,3103.2,2.38796647]
[1767453688895,0.00180288,3103.6,3103.1,0.6201952]
[1767453689101,0.00180288,3103.6,3102.9,2.97918091]
[1767453690398,0.00180288,3103.6,3103.0,2.49391789]
[1767453696303,1.81701843,3103.6,3103.0,2.49391789]
[1767453698616,1.81521555,3103.5,3102.8,2.81589968]
[1767453698917,1.81521555,3103.5,3102.8,2.49572037]
[1767453699510,5.03745048,3103.5,3102.8,2.49572037]
[1767453701304,1.81521555,3103.5,3102.8,2.49572037]
[1767453701878,0.00180288,3103.6,3102.8,2.49572037]
[1767453702577,0.00180288,3103.6,3102.9,2.49391789]
[1767453703109,3.22390143,3103.6,3102.9,2.49391789]
[1767453705014,0.00180288,3103.6,3102.9,2.49391789]
[1767453705700,0.00180288,3103.6,3103.0,2.49391789]
[1767453706104,1.81701843,3103.6,3103.0,2.49391789]
[1767453706986,1.81701843,3103.6,3103.0,3.13141333]
[1767453708506,0.00180288,3103.6,3103.0,3.13141333]
[1767453708813,0.00180288,3103.6,3103.1,2.49391789]
[1767453709016,0.00180288,3103.6,3103.2,2.49391789]
[1767453710996,0.00180288,3103.6,3103.3,2.49391789]
[1767453711196,0.00180288,3103.6,3103.4,3.06555293]
[1767453712300,0.00180288,3103.6,3103.4,2.49391789]
[1767453715705,0.00180288,3103.6,3103.4,2.4919179]
[1767453717027,0.001,3103.8,3103.6,2.49391789]
[1767453720415,0.002,3104.3,3104.0,2.25199738]
[1767453720626,5.03821736,3104.7,3104.1,2.25199738]
[1767453720920,5.03821736,3104.7,3104.1,2.24999739]
[1767453720921,5.94890181,3104.7,3104.1,2.24999739]
[1767453721307,0.91068445,3104.7,3104.1,2.24999739]
[1767453721503,3.22085047,3104.8,3104.1,2.24999739]
[1767453721704,3.22356095,3104.9,3104.1,2.24999739]
[1767453722988,0.00280232,3104.9,3104.2,2.25199738]
[1767453724022,0.00280232,3104.9,3104.3,2.25199738]
[1767453725428,0.00280232,3104.9,3104.4,2.25199738]
[1767453726029,0.00280232,3104.9,3104.5,2.25199738]
[1767453728536,0.00280232,3104.9,3104.2,4.06644094]
[1767453728841,0.00280232,3104.9,3104.4,2.25199738]
[1767453729034,0.00280232,3104.9,3104.5,2.25199738]
[1767453729528,1.81921553,3105.3,3104.6,2.25199738]
[1767453730834,5.0395439,3105.3,3104.6,2.25199738]
[1767453731403,1.81921553,3105.3,3104.6,2.25199738]
[1767453732322,5.03951737,3105.3,3104.6,2.25199738]
[1767453732508,1.81921553,3105.2,3104.6,2.25199738]
[1767453732708,1.81921553,3105.2,3104.6,2.79939915]
[1767453733015,5.04022419,3105.4,3104.6,2.79939915]
[1767453734233,1.81921553,3105.3,3104.6,2.79939915]
[1767453735042,0.00080152,3105.4,3104.6,2.79939915]
[1767453735219,0.00080152,3105.4,3104.7,2.25199738]
[1767453735406,0.00080152,3105.4,3104.9,2.25199738]
[1767453737237,0.00280152,3105.4,3104.9,2.25199738]
[1767453741632,0.00280152,3105.4,3104.7,2.25199738]
[1767453741833,0.04305398,3105.4,3104.7,2.25199738]
[1767453742236,1.86226951,3105.4,3104.7,2.25199738]
[1767453742436,1.81921553,3105.2,3104.5,2.25279978]
[1767453742610,1.85947058,3105.2,3104.5,2.25279978]
[1767453743339,5.03969288,3105.2,3104.5,2.25279978]
[1767453743516,5.07994793,3105.2,3104.5,2.25279978]
[1767453744514,5.03969288,3105.2,3104.5,2.25279978]
[1767453745146,8.26017023,3105.2,3104.5,2.25279978]
[1767453745856,1.81921553,3105.0,3104.5,0.0008024]
[1767453746054,1.82001793,3104.9,3104.2,2.25199738]
[1767453746852,1.81921553,3104.8,3104.2,2.25199738]
[1767453747228,1.81921553,3104.8,3104.0,2.2537997]
[1767453747428,1.81921553,3104.8,3104.5,0.001]
[1767453747641,1.81921553,3104.6,3104.0,0.00180232]
[1767453747841,1.81921553,3104.5,3104.0,0.00180232]
[1767453748026,3.22108042,3104.6,3104.0,0.00180232]
[1767453748221,5.04029595,3104.6,3104.0,0.00180232]
[1767453748758,1.81921553,3104.5,3104.0,0.00180232]
[1767453748956,1.81921553,3104.4,3104.0,0.00180232]
[1767453749455,1.81921553,3104.4,3103.6,0.00080232]
[1767453749661,1.82001785,3104.4,3103.6,0.00080232]
[1767453750425,1.81921553,3104.2,3103.6,0.00080232]
[1767453751024,1.81921553,3103.9,3103.2,0.00180296]
[1767453751230,1.81921553,3103.7,3103.2,0.00180296]
[1767453752171,1.81921553,3103.6,3103.2,0.00180296]
[1767453762771,2.29584563,3103.8,3103.2,0.00180296]
[1767453762971,1.81921553,3103.8,3103.2,0.00180296]
[1767453765248,3.22175955,3103.9,3103.2,2.34708148]
[1767453765454,5.04097508,3103.9,3103.2,2.34708148]
[1767453766377,0.002,3103.8,3103.2,2.34708148]
[1767453767075,1.81921553,3103.7,3103.2,0.00180296]
[1767453771374,5.04118956,3103.7,3103.2,0.00180296]
[1767453771958,1.81921553,3103.7,3103.2,0.00180296]
[1767453772151,3.22390111,3103.8,3103.2,0.00180296]
[1767453773078,5.04311664,3103.8,3103.2,0.00180296]
[1767453773380,5.86967648,3103.8,3103.2,0.00180296]
[1767453776580,1.81921553,3103.7,3103.2,0.00180296]
[1767453777479,3.22206469,3103.6,3103.2,0.00180296]
[1767453777858,5.04121996,3103.7,3103.2,0.00180296]
[1767453778554,3.22200443,3103.7,3103.2,2.34708148]
[1767453779585,4.13115889,3103.7,3103.2,2.34708148]
[1767453780572,1.81921553,3103.6,3103.2,0.00180296]
[1767453782402,1.81921553,3103.6,3103.1,0.001]
[1767453782589,5.04138404,3103.5,3103.0,0.001]
[1767453782792,3.22216851,3103.5,3103.0,2.2687834]
[1767453783485,3.22216851,3103.5,3103.1,0.001]
[1767453783684,0.64450866,3103.4,3103.1,0.001]
[1767453783885,0.64450866,3103.4,3103.0,2.2197834]
[1767453784905,3.86683222,3103.4,3102.8,2.26958588]
[1767453790199,0.0402797,3103.3,3102.8,2.26958588]
[1767453792509,3.86883222,3103.4,3102.8,2.26958588]
[1767453795511,3.22248002,3103.2,3102.8,0.00180248]
[1767453795810,6.44496004,3103.2,3102.8,0.00180248]
[1767453796412,6.44576252,3103.2,3102.6,2.2677834]
[1767453797383,8.31297805,3103.2,3102.6,2.2677834]
[1767453797698,3.22268772,3103.0,3102.6,2.2677834]
[1767453803315,0.00080248,3103.2,3102.6,2.2677834]
[1767453803612,3.22329327,3103.2,3102.8,2.2677834]
[1767453803908,3.22328355,3103.2,3102.8,2.2677834]
[1767453805925,0.00080248,3103.2,3102.8,2.2677834]
[1767453808731,0.00080248,3103.2,3102.6,2.2677834]
[1767453809027,0.00080248,3103.2,3102.5,0.001]
[1767453809028,2.05501981,3103.2,3102.5,0.001]
[1767453809217,0.04028229,3103.1,3102.5,0.001]
[1767453809721,0.04028229,3103.1,3102.5,2.2687834]
[1767453810317,0.04028229,3103.1,3102.8,0.001]
[1767453810520,2.07674574,3103.0,3102.4,0.001]
[1767453810823,8.31321417,3102.7,3102.1,2.389402]
[1767453810996,8.3140176,3102.7,3102.1,2.389402]
[1767453811823,1.86721553,3102.6,3101.8,2.39220512]
[1767453812029,0.83140176,3102.5,3102.0,2.390402]
[1767453812989,3.22331098,3102.4,3102.0,2.390402]
[1767453818798,1.86721553,3102.3,3101.8,0.00280312]
[1767453820024,3.22351879,3102.2,3101.8,0.00280312]
[1767453820224,0.5131027,3102.1,3101.8,0.00280312]
[1767453823343,3.73675478,3102.1,3101.8,0.00280312]
[1767453825968,3.22356365,3102.2,3101.8,0.00280312]
[1767453826547,3.22356365,3102.2,3101.8,2.39220512]
[1767453827348,3.22350145,3102.3,3101.8,2.39220512]
[1767453831149,3.22331098,3102.4,3101.8,2.39220512]
[1767453831649,8.31383749,3102.4,3101.8,0.00280312]
[1767453831832,2.78173945,3102.3,3101.8,0.00280312]
[1767453832648,0.04029398,3102.2,3101.8,0.00280312]
[1767453833147,3.22351879,3102.2,3101.8,0.00280312]
[1767453836151,4.13799941,3102.3,3101.8,2.39220512]
[1767453837651,3.22347549,3102.3,3101.8,2.39220512]
[1767453838921,5.09152939,3102.4,3101.8,0.00280312]
[1767453839121,1.90750821,3102.3,3101.8,0.00280312]
[1767453840549,1.86721553,3102.3,3101.8,0.00280312]
[1767453841156,3.22351879,3102.2,3101.8,0.00280312]
[1767453841359,4.05503647,3102.2,3101.8,0.00280312]
[1767453847257,4.05503647,3102.2,3101.9,2.31688526]
[1767453847459,3.22347694,3102.3,3101.9,2.31688526]
[1767453847635,3.22347694,3102.3,3101.8,0.00280312]
[1767453848672,0.04029398,3102.2,3101.8,0.00280312]
[1767453848835,0.64872479,3102.1,3101.7,2.31788526]
[1767453849165,0.04029658,3102.0,3101.7,2.31788526]
[1767453851952,0.64872479,3102.1,3101.7,2.31788526]
[1767453855669,3.22536764,3102.2,3101.7,2.31788526]
[1767453857873,0.00080343,3102.7,3102.4,2.31688526]
[1767453858172,0.002,3103.0,3102.4,2.31688526]
[1767453858475,3.22469864,3103.0,3102.4,2.31688526]
[1767453858848,0.002,3103.0,3102.4,2.31688526]
[1767453859573,2.94905427,3102.9,3102.4,2.31688526]
[1767453859874,5.1360037,3102.8,3102.3,0.00080351]
[1767453860079,8.31861295,3102.8,3102.1,2.31688526]
[1767453860372,1.91391307,3102.7,3101.9,2.31688526]
[1767453860573,1.87362558,3102.7,3101.9,2.31688526]
[1767453860778,0.95683044,3102.6,3101.9,2.31688526]
[1767453861180,0.001,3102.2,3101.9,2.31688526]
[1767453878801,0.001,3102.2,3101.9,2.31888526]
[1767453890294,0.001,3102.3,3102.2,2.42994549]
[1767453894806,0.001,3102.3,3102.0,2.42994549]
[1767453902549,0.001,3102.3,3102.0,2.99581375]
[1767453903054,0.001,3102.6,3102.2,2.36102813]
[1767453908567,0.00080248,3103.2,3102.8,2.36102813]
[1767453908725,0.00080248,3103.2,3102.8,2.35902814]
[1767453909064,0.001,3103.5,3102.8,2.59573351]
[1767453909843,0.001,3103.5,3102.8,2.59373352]
[1767453913774,1.91909915,3103.5,3102.8,2.59373352]
[1767453914576,1.91909915,3103.5,3102.8,2.35783071]
[1767453915850,1.87982205,3103.4,3102.8,2.35783071]
[1767453917382,1.87982205,3103.4,3102.8,0.00080256]
[1767453917383,0.0402797,3103.3,3102.8,0.00080256]
[1767453917568,1.91810175,3103.3,3102.3,0.00080359]
[1767453917883,1.87701949,3103.0,3102.3,0.00080359]
[1767453918285,2.38706606,3103.0,3102.3,2.36183172]
[1767453920185,5.60978873,3103.0,3102.3,2.36183172]
[1767453920784,1.87701949,3102.9,3102.3,0.00080359]
[1767453921109,0.51004657,3103.0,3102.3,2.36183172]
[1767453921286,0.00080256,3103.2,3102.4,2.36102813]
[1767453921873,1.87782205,3103.2,3102.4,2.36102813]
[1767453922159,3.22259003,3103.1,3102.4,2.36102813]
[1767453923271,5.100333,3103.2,3102.4,2.36102813]
[1767453923467,0.00080256,3103.2,3102.5,2.36102813]
[1767453923986,0.002,3103.4,3103.0,2.36102813]
[1767453925088,0.002,3103.4,3103.1,2.36102813]
[1767453929365,1.87901949,3103.4,3102.8,0.00080264]
[1767453929568,1.87701949,3103.2,3102.8,0.00080264]
[1767453929783,1.91730049,3103.2,3102.8,0.00080264]
[1767453930066,1.87701949,3103.2,3102.8,0.00080264]
[1767453930891,1.87701949,3103.1,3102.8,0.00080264]
[1767453931199,1.91730178,3103.1,3102.8,0.00080264]
[1767453931364,2.7723244,3103.1,3102.8,0.00080264]
[1767453932066,1.87701949,3103.0,3102.8,0.00080264]
[1767453933199,1.87701949,3102.9,3102.8,0.00080264]
[1767453933699,1.87701949,3102.9,3102.3,2.36194277]
[1767453935094,3.22275356,3103.0,3102.3,2.36194277]
[1767453935299,4.14459382,3103.0,3102.3,2.36194277]
[1767453939679,4.14459382,3103.0,3102.3,2.36294277]
[1767453940206,4.14659382,3103.0,3102.3,2.36294277]
[1767453944297,0.04028489,3102.9,3102.3,2.36294277]
[1767453945707,4.14659382,3103.0,3102.3,2.36294277]
[1767453946005,0.92384026,3103.0,3102.3,2.36294277]
[1767453946204,0.002,3103.0,3102.4,2.36113918]
[1767453946710,0.002,3103.0,3102.6,2.36113918]
[1767453948407,0.00080264,3103.2,3102.8,2.36113918]
[1767453948580,0.00080264,3103.2,3103.0,2.36113918]
[1767453951209,0.001,3103.5,3103.1,2.36113918]
[1767453957207,0.001,3103.5,3103.1,2.36113918]
[1767453959321,0.001,3103.5,3102.9,2.36113918]
[1767453960909,1.87701949,3103.4,3102.8,0.00080272]
[1767453961107,1.87701949,3103.3,3102.8,0.00080272]
[1767453963115,1.87701949,3103.1,3102.8,0.00080272]
[1767453965289,1.87701949,3103.0,3102.8,0.00080272]
[1767453966224,1.87701949,3103.0,3102.3,0.00180359]
[1767453966522,6.44534682,3103.1,3102.3,0.00180359]
[1767453966523,1.87701949,3102.7,3102.3,0.00180359]
[1767453967500,5.10009992,3102.7,3102.3,0.00180359]
[1767453969200,1.87701949,3102.7,3102.3,0.00180359]
[1767453970327,5.10002514,3102.7,3102.3,0.00180359]
[1767453977017,1.87701949,3102.7,3102.3,0.00180359]
[1767453977343,5.09988608,3102.9,3102.3,2.33445912]
[1767453977517,3.22286659,3102.9,3102.3,2.33445912]
[1767453980553,3.95374419,3103.0,3102.3,2.33445912]
[1767453981173,3.22470951,3103.0,3102.3,2.33445912]
[1767453983252,0.002,3103.0,3102.3,2.33445912]
[1767453992559,1.87901949,3103.0,3102.3,2.33445912]
[1767453993058,0.002,3103.0,3102.4,2.48598238]
[1767453993952,0.002,3103.0,3102.5,2.48598238]
[1767453994160,0.002,3103.0,3102.7,2.48598238]
[1767454005241,0.002,3103.0,3102.6,3.79400613]
[1767454005473,0.002,3103.0,3102.7,2.48598238]
[1767454007503,0.00080272,3103.2,3102.8,2.48598238]
[1767454007785,0.001,3103.5,3102.8,2.48678518]
[1767454008088,0.001,3103.5,3102.9,3.67388974]
[1767454009216,0.001,3103.5,3103.0,2.48598238]
[1767454009685,0.002,3103.2,3103.0,2.48598238]
[1767454009993,0.001,3103.5,3103.0,2.48598238]
[1767454010866,0.001,3103.5,3103.0,5.70866945]
[1767454011086,0.001,3103.5,3103.1,0.68965768]
[1767454011287,0.001,3103.5,3103.2,2.48598238]
[1767454017060,0.001,3103.5,3103.3,2.48598238]
[1767454022891,0.002,3103.9,3103.3,2.48598238]
[1767454026092,1.87901949,3103.9,3103.2,3.22327598]
[1767454026262,1.87901949,3103.9,3103.2,4.17758587]
[1767454026861,1.87901949,3103.9,3103.2,6.58407046]
[1767454029698,1.87901949,3103.9,3103.2,3.36159752]
[1767454031203,5.10077452,3103.9,3103.2,3.36159752]
[1767454034407,5.10077452,3103.9,3103.3,2.40648459]
[1767454038403,1.87901949,3103.9,3103.3,2.40648459]
[1767454040102,5.10078297,3103.9,3103.3,2.40648459]
[1767454041803,1.87901949,3103.9,3103.3,2.40648459]
[1767454042184,0.002,3103.9,3103.3,2.40648459]
[1767454042893,3.22378201,3103.9,3103.3,2.40648459]
[1767454043603,0.002,3103.9,3103.3,2.40648459]
[1767454046614,0.002,3103.9,3103.4,2.40648459]
[1767454049118,0.002,3103.9,3103.4,5.62867951]
[1767454049309,0.002,3103.9,3103.5,2.40648459]
[1767454053524,0.002,3103.9,3103.5,5.62864589]
[1767454055026,0.002,3103.9,3103.6,2.47191457]
[1767454056251,0.002,3103.9,3103.4,5.69418691]
[1767454056430,0.002,3103.9,3103.5,0.95760583]
[1767454056928,0.002,3103.9,3103.5,4.17977386]
[1767454058633,0.002,3103.9,3103.6,2.47191457]
[1767454060931,0.002,3103.9,3103.5,4.17977386]
[1767454064434,0.002,3103.9,3103.7,2.47191457]
[1767454064728,0.002,3103.9,3103.7,3.13707126]
[1767454065134,0.002,3104.3,3103.8,2.47191457]
[1767454067943,0.002,3104.3,3103.9,2.47191457]
[1767454068111,0.002,3104.3,3103.9,2.46991458]
[1767454071278,0.002,3104.3,3104.0,2.47191457]
[1767454071413,0.002,3104.3,3104.0,3.04127791]
[1767454072927,0.002,3104.3,3104.0,3.03927792]
[1767454073153,0.002,3104.3,3104.0,2.46991458]
[1767454076160,1.88101947,3104.6,3104.0,2.46991458]
[1767454076372,1.88101947,3104.6,3104.0,2.47071698]
[1767454078060,5.10212639,3104.6,3104.0,2.47071698]
[1767454079361,1.88101947,3104.5,3104.0,0.0008024]
[1767454079826,1.88101947,3104.5,3104.0,0.0018024]
[1767454080028,0.002,3104.3,3104.0,0.0018024]
[1767454080230,0.002,3104.3,3104.0,0.57135947]
[1767454081126,0.002,3104.3,3104.0,0.0018024]
[1767454081625,0.002,3104.3,3104.0,2.40261298]
[1767454084363,0.002,3104.3,3104.0,0.0018024]
[1767454085065,0.002,3104.3,3104.0,2.40261298]
[1767454087077,0.002,3104.3,3104.0,5.62426106]
[1767454087237,0.002,3104.3,3104.1,0.56242611]
[1767454090268,1.88101947,3104.6,3104.1,0.56242611]
[1767454090567,1.88101947,3104.8,3104.2,2.40081058]
[1767454091149,0.0008024,3104.9,3104.2,2.40081058]
[1767454091372,1.88101947,3104.8,3104.2,3.01946889]
[1767454091560,1.88101947,3104.8,3104.2,0.61865831]
[1767454091758,0.0008024,3104.9,3104.3,2.40081058]
[1767454092256,1.88182187,3104.9,3104.3,2.40081058]
[1767454092457,1.88182187,3104.9,3104.2,0.61865831]
[1767454092663,1.88182187,3104.9,3104.3,0.44026284]
[1767454092964,0.0008024,3104.9,3104.3,2.84107342]
[1767454093460,0.0008024,3104.9,3104.4,2.40081058]
[1767454094156,0.0008024,3104.9,3104.3,3.6615866]
[1767454094464,1.88182187,3104.9,3104.3,0.44026284]
[1767454094638,1.88182187,3104.9,3104.4,0.66811278]
[1767454095073,0.0008024,3104.9,3104.4,3.06892336]
[1767454095261,0.0008024,3104.9,3104.5,2.40081058]
[1767454097141,0.0028024,3104.9,3104.5,2.40081058]
[1767454107966,0.0028024,3104.9,3104.5,5.62191448]
[1767454108301,0.0028024,3104.9,3104.6,3.02981331]
[1767454111180,0.0028024,3104.9,3104.6,0.62900273]
[1767454111381,0.0028024,3104.9,3104.4,3.04251195]
[1767454111579,1.88101947,3104.6,3103.6,2.37520157]
[1767454111767,1.88101947,3104.6,3103.7,4.0668665]
[1767454112384,1.88101947,3104.6,3103.8,3.22184895]
[1767454113182,1.88101947,3104.6,3104.0,2.37620157]
[1767454113550,1.88101947,3104.6,3103.7,0.845]
[1767454113551,1.88101947,3104.3,3103.6,2.37520157]
[1767454115372,5.10238974,3104.3,3103.6,2.37520157]
[1767454116878,5.10238974,3104.3,3104.0,0.001]
[1767454117059,5.10238974,3104.3,3103.6,2.37520157]
[1767454117060,1.88101947,3104.2,3103.6,2.37520157]
[1767454117456,5.1025123,3104.2,3103.6,2.37520157]
[1767454118149,5.68876568,3104.2,3103.6,0.0008024]
[1767454118580,1.88101947,3104.1,3103.6,0.0008024]
[1767454121094,5.10264818,3104.1,3103.6,0.0008024]
[1767454121395,5.10264818,3104.1,3103.4,2.37539917]
[1767454121593,1.88182187,3104.0,3103.4,2.37539917]
[1767454121785,0.0008024,3104.0,3103.4,2.37539917]
[1767454123199,1.88101947,3103.9,3103.4,0.001]
[1767454124902,1.88101947,3103.9,3103.5,0.001]
[1767454125086,0.83251917,3103.9,3103.5,0.001]
[1767454125282,5.93529451,3103.9,3103.4,0.001]
[1767454126320,3.22185707,3103.8,3103.4,0.001]
[1767454128997,5.10287654,3103.8,3103.4,0.001]
[1767454129178,6.01867194,3103.8,3103.4,0.001]
[1767454134624,4.13765247,3103.8,3103.4,0.001]
[1767454135509,4.13765247,3103.8,3103.4,2.37539917]
[1767454135709,4.13765247,3103.8,3103.3,2.37539917]
[1767454137901,4.17792568,3103.8,3103.3,2.37539917]
[1767454139016,4.13765247,3103.8,3103.3,2.37539917]
[1767454140516,0.9157954,3103.8,3103.3,2.37539917]
[1767454140697,3.22177919,3103.9,3103.3,2.37539917]
[1767454143614,3.22248146,3104.0,3103.3,2.37539917]
[1767454145516,1.88101947,3103.9,3103.3,0.001]
[1767454145692,3.22248146,3104.0,3103.3,2.41066377]
[1767454145893,3.92551076,3104.0,3103.3,2.41066377]
[1767454148526,3.92751076,3104.0,3103.3,2.41066377]
[1767454149019,5.80853023,3104.0,3103.3,2.41066377]
[1767454149220,1.88101947,3103.9,3103.3,0.001]
[1767454149396,3.92751076,3104.0,3103.3,2.41066377]
[1767454149596,0.71490689,3103.9,3103.3,2.41066377]
[1767454154534,3.22185707,3103.8,3103.3,2.41066377]
[1767454159133,0.7571788,3103.9,3103.3,2.41066377]
[1767454159134,3.97898236,3103.9,3103.3,2.41066377]
[1767454160734,1.88101947,3103.8,3103.2,0.00080304]
[1767454161037,1.88101947,3103.6,3103.2,0.00080304]
[1767454163741,5.10315219,3103.6,3103.1,0.001]
[1767454163942,5.10395523,3103.6,3103.1,0.001]
[1767454165614,1.88101947,3103.5,3102.8,0.0008028]
[1767454165817,5.10329181,3103.4,3102.8,0.0008028]
[1767454166016,5.93592308,3103.4,3102.8,0.0008028]
[1767454168052,1.88101947,3103.2,3103.0,0.001]
[1767454168218,4.05495225,3103.4,3103.0,0.001]
[1767454168534,5.10334045,3103.4,3103.0,0.001]
[1767454169649,5.10334045,3103.4,3102.8,0.0008028]
[1767454171326,5.10334045,3103.4,3102.8,2.47100013]
[1767454172950,6.4470395,3103.6,3102.8,2.47100013]
[1767454173155,0.92322123,3103.5,3102.8,2.47100013]
[1767454175760,4.1454555,3103.5,3102.8,2.47100013]
[1767454177262,4.1454555,3103.5,3102.8,2.47200013]
[1767454177566,6.02647497,3103.5,3102.8,2.47200013]
[1767454177766,1.88101947,3103.4,3102.8,0.0018028]
[1767454178265,5.10331578,3103.4,3102.8,0.0018028]
[1767454179476,3.22229631,3103.4,3102.8,2.47200013]
[1767454182769,4.14540996,3103.5,3102.8,2.47200013]
[1767454182936,3.22493792,3103.6,3102.8,3.04169732]
[1767454183138,3.22493792,3103.6,3102.8,6.26459098]
[1767454183338,3.22493792,3103.6,3102.9,2.47019733]
[1767454183567,5.10595739,3103.6,3102.9,2.47019733]
[1767454183884,1.88101947,3103.5,3102.9,2.47019733]
[1767454184062,1.88101947,3103.5,3102.9,3.09676409]
[1767454184949,5.10520786,3103.5,3102.9,3.09676409]
[1767454186566,0.002,3103.5,3103.0,2.47019733]
[1767454187972,0.002,3103.5,3103.1,2.47019733]
[1767454188173,0.002,3103.5,3103.2,0.33151973]
[1767454191418,0.002,3103.5,3103.3,2.47019733]
[1767454191743,0.002,3103.5,3103.2,0.33151973]
[1767454191944,0.002,3103.5,3103.3,2.47019733]
[1767454192441,0.002,3103.5,3103.2,0.33151973]
[1767454192641,0.002,3103.5,3103.2,2.80171706]
[1767454194862,0.002,3103.5,3103.2,0.33151973]
[1767454198805,0.002,3103.5,3103.1,3.22253881]
[1767454199805,0.002,3103.5,3103.0,3.31619733]
[1767454200606,0.002,3103.5,3103.0,6.53887597]
[1767454202412,0.002,3103.5,3103.0,0.846]
[1767454204786,0.002,3103.5,3103.0,4.06866889]
[1767454206193,0.002,3103.5,3103.0,9.59595004]
[1767454206436,0.002,3103.5,3103.0,7.3330376]
[1767454206793,0.002,3103.5,3103.1,2.30459343]
[1767454212114,0.002,3103.5,3103.0,5.02844417]
[1767454213418,0.002,3103.5,3103.0,1.80577528]